Cogmind - Beta 13 @@@ ROGUE MODE // 2024.05.22 @ 20:21:46 Player: KingCain Result: Destroyed by G-47 Trooper with Particle Gun Performance ------------- Evolutions (2) 1000 Regions Visited (5) 1000 Robots Destroyed (47) 235 Value Destroyed (883) 883 Prototype IDs (2) 40 Alien Tech Used (0) 0 Bonus (0) 0 TOTAL SCORE: 3158 Bonus ------- None Cogmind --------- Core Integrity 0/550 Matter 76/300 Energy 100/100 System Corruption 13% Temperature Cool (45) Movement Core (50) Location -8/Materials Parts ------- > --- POWER (2) -------- (None) > --- PROPULSION (5) --- (None) > --- UTILITY (2) ------ (None) > --- WEAPON (2) ------- (None) > --- INVENTORY (5) ---- Ion Cannon High-powered Shotgun High-powered Shotgun High-powered Shotgun High-powered Shotgun Peak State ------------ > --- POWER ------------ Light Nuclear Core > --- PROPULSION ------- Titanium Leg > --- UTILITY ---------- Advanced Targeting Computer Recalibrator > --- WEAPON ----------- Shock Rifle Missile Launcher > --- INVENTORY -------- Ion Cannon High-powered Shotgun High-powered Shotgun High-powered Shotgun High-powered Shotgun [Rating: 20] Favorites ----------- Power Ion Engine Engine Ion Engine Power Core Light Nuclear Core Propulsion Light Treads Treads Light Treads Leg VSS Leg Wheel Wheel Hover Unit Hover Unit Flight Unit Flight Unit Utility Core Shielding Device ECM Suite Storage High-capacity Storage Unit Processor Targeting Computer Protection Core Shielding Weapon Assault Rifle Energy Gun Small Laser Ballistic Gun Assault Rifle Ballistic Cannon Light Cannon Launcher Missile Launcher Special Weapon Plasma Flamer Special Melee Weapon Datajack Build | -11 -10 -10 -9 -9 -8 ------- Run | Yrd Mat Min Mat Sto Mat Slots Evolved 4 | . . . 2 . 2 Power 1 | . . . . . 1 Propulsion 3 | . . . 2 . 1 Utility . | . . . . . . Weapon . | . . . . . . Parts Attached 58 | 7 3 9 18 3 18 Power 7 | 1 . 1 2 . 3 Engine 6 | 1 . 1 2 . 2 Core 1 | . . . . . 1 Reactor . | . . . . . . Propulsion 21 | 2 . 2 12 . 5 Treads 2 | 2 . . . . . Leg 6 | . . . 2 . 4 Wheel 4 | . . 2 2 . . Hover 1 | . . . . . 1 Flight 8 | . . . 8 . . Utility 11 | 2 3 . 2 1 3 Device 4 | 1 . . 1 . 2 Storage 3 | 1 2 . . . . Processor 3 | . . . 1 1 1 Hackware . | . . . . . . Protection 1 | . 1 . . . . Artifact . | . . . . . . Weapon 19 | 2 . 6 2 2 7 Energy Gun 2 | 1 . . . . 1 Energy Cannon . | . . . . . . Ballistic Gun 8 | 1 . 4 . 2 1 Ballistic Cannon 3 | . . . 2 . 1 Launcher 4 | . . . . . 4 Special Weapon 1 | . . 1 . . . Impact Weapon . | . . . . . . Slashing Weapon . | . . . . . . Piercing Weapon . | . . . . . . Special Melee Weapon 1 | . . 1 . . . Unidentified Prototypes 2 | . . . . 1 1 Parts Lost 23 | . 1 1 4 . 17 Power 4 | . . . 1 . 3 Propulsion 9 | . . 1 3 . 5 Utility 5 | . 1 . . . 4 Weapon 5 | . . . . . 5 Highest Loss Streak 8 | . 1 1 4 . 8 To Critical Strikes . | . . . . . . Average Slot Usage (%) 82 | . 98 99 96 77 45 Engine 11 | . 14 14 11 11 6 Core 1 | . . . . . 4 Treads 13 | . 28 24 . . . Leg 1 | . . . . . 4 Wheel 1 | . . 3 1 . . Flight 9 | . . . 38 33 4 Device 5 | . 5 . 9 11 6 Storage 7 | . 14 14 1 . . Processor 3 | . . . 9 11 4 Protection 5 | . 7 14 1 . . Energy Gun 5 | . 14 3 . . 3 Ballistic Gun 9 | . 14 18 1 4 2 Ballistic Cannon 3 | . . . 20 6 . Launcher 2 | . . . . . 7 Naked Turns 9 | . . . . . 9 Heaviest Build 89 | 14 89 50 49 10 24 Greatest Support 40 | 40 40 40 20 12 32 Greatest Overweight (x) 7 | . 2 2 2 . 7 Average Overweight (x) . | . 1 1 . . 1 Largest Inventory Capacity 25 | 8 25 20 20 5 5 Average Capacity 12 | 7 21 20 6 5 5 Most Carried 20 | 6 12 20 16 5 5 Average Carried 8 | 5 8 17 5 4 4 Final Capacity 20 | 8 20 20 5 5 5 Final Carried 17 | 6 12 17 3 5 5 Class Distribution -------------------- 89% | Mutant 7% | Scavenger-Sprinter Dominant Class ---------------- Mutant | -10/Materials Mutant | -10/Mines Scavenger-Sprinter | -9/Materials Mutant | -9/Storage Mutant | -8/Materials Resources | -11 -10 -10 -9 -9 -8 ----------- Run | Yrd Mat Min Mat Sto Mat Matter Collected 1022 | 350 46 122 223 . 281 Remotely . | . . . . . . Salvage Created 1180 | 364 72 158 92 . 494 Parts 91 | 32 10 12 8 . 29 Haulers Intercepted 1 | . . . . . 1 Recyclers Shooed 1 | . . . . . 1 Parts Field Recycled . | . . . . . . Retrieved Matter . | . . . . . . Parts Self-Destructed . | . . . . . . Prevented . | . . . . . . Kills | -11 -10 -10 -9 -9 -8 ------- Run | Yrd Mat Min Mat Sto Mat Combat Hostiles Destroyed 24 | . 5 7 2 . 10 Guns 12 | . 5 7 . . . Cannons 2 | . . . 2 . . AOE 10 | . . . . . 10 Classes Destroyed 11 | 3 1 1 1 . 5 Worker 7 | 4 . 1 1 . 1 Builder 2 | . . . . . 2 Tunneler 9 | 9 . . . . . Hauler 1 | . . . . . 1 Recycler 2 | 1 . . . . 1 Mechanic 1 | . . . . . 1 Watcher 1 | . . . . . 1 Swarmer 10 | . 5 5 . . . Grunt 10 | . . 2 . . 8 Brawler 1 | . . . . . 1 Sentry 3 | . . . 2 . 1 Best Kill Streak 6 | 6 3 4 2 . 5 Combat Bots Only 4 | . 3 4 1 . 4 Max Kills in Single Turn 3 | 1 1 1 1 . 3 Gunslinging . | . . . . . . Exploded 2 | . . . . . 2 Melee . | . . . . . . Uniques/NPCs Destroyed . | . . . . . . Combat | -11 -10 -10 -9 -9 -8 -------- Run | Yrd Mat Min Mat Sto Mat Hostile Shots Fired 280 | . 34 64 22 4 156 Missed 84 | . 8 17 7 3 49 Damage Taken 2826 | . 216 495 229 13 1873 Core 754 | . 24 136 29 . 565 Absorbed by Shields . | . . . . . . Redirected to Shielding 30 | . 2 28 . . . Core Remaining (%) 76 | 100 . 36 . 92 . Volleys Fired 100 | 28 7 33 11 1 20 Largest 2 | 2 2 2 2 1 2 Hottest 100 | 60 60 100 70 35 86 Shots Fired 180 | 56 14 49 22 1 38 Gun 123 | 56 14 44 . . 9 Cannon 28 | . . . 22 1 5 Launcher 24 | . . . . . 24 Special 5 | . . 5 . . . Kinetic 99 | 28 7 36 22 1 5 Thermal 48 | 28 7 13 . . . Explosive 24 | . . . . . 24 Electromagnetic 9 | . . . . . 9 Robot Hit Streak 8 | 7 4 8 8 . 5 Robot Miss Streak 6 | 6 2 3 2 1 6 Penetration Max . | . . . . . . Secondary Targets 4 | . 2 2 . . . Max Gunslinging Chain 1 | . 1 1 . . . Shots Hit Robots 104 | 35 8 30 14 . 17 Core Hits 73 | 16 5 14 5 . 33 Critical Kills . | . . . . . . Critical Parts Destroyed 1 | 1 . . . . . Critical Strikes 2 | 1 . . 1 . . Destroy 1 | 1 . . . . . Blast 1 | . . . 1 . . Melee Attacks 2 | . . 2 . . . Impact . | . . . . . . Slashing . | . . . . . . Piercing . | . . . . . . Sneak Attacks . | . . . . . . Combat Hostiles . | . . . . . . Follow-up Attacks . | . . . . . . Damage Inflicted 2684 | 432 93 284 265 . 1610 Guns 933 | 430 93 229 . . 181 Cannons 325 | . . . 265 . 60 Explosions 1356 | . . . . . 1356 Melee . | . . . . . . Ramming 15 | 2 . . . . 13 Kinetic 813 | 242 52 194 265 . 60 Thermal 396 | 188 41 90 . . 77 Explosive 1279 | . . . . . 1279 Electromagnetic 181 | . . . . . 181 Impact . | . . . . . . Slashing . | . . . . . . Piercing . | . . . . . . Highest Corruption 13 | . . . . . 13 Average Corruption 9 | . . . . . 9 Corruption Purged . | . . . . . . Corruption Blocked . | . . . . . . Effects 19 | . . . . . 19 Message Errors 2 | . . . . . 2 Matter Fused 3 | . . . . . 3 Energy Discharges 2 | . . . . . 2 Parts Rejected 1 | . . . . . 1 Parts Fused 1 | . . . . . 1 Data Loss (minor) 2 | . . . . . 2 Data Loss (major) 1 | . . . . . 1 Misfires 4 | . . . . . 4 Misdirections 2 | . . . . . 2 Weapon Failures 1 | . . . . . 1 Overload Shots . | . . . . . . Overflow Damage 36 | . . . . . 36 Projectiles . | . . . . . . Explosions 36 | . . . . . 36 Melee . | . . . . . . Knockbacks 7 | . . . 3 . 4 Impact . | . . . . . . Kinetic 7 | . . . 3 . 4 Secondary . | . . . . . . Self-Inflicted Damage 215 | . . . . . 215 Shots 6 | . . . . . 6 Rammed 1 | 1 . . . . . Targets Rammed 5 | 1 . . . . 4 Kicked 4 | . . . . . 4 Crushed . | . . . . . . Highest Temperature 201 | 2 . 201 81 3 99 Average Temperature 54 | 2 . 95 42 3 30 Received Heat Transfer 924 | . . 150 45 . 729 Siege Activations . | . . . . . . Robots Corrupted . | . . . . . . Combat Hostiles . | . . . . . . Parts Fried . | . . . . . . Impact Corruptions . | . . . . . . Robots Melted . | . . . . . . Combat Hostiles . | . . . . . . Parts Melted . | . . . . . . Heat Transferred 1070 | 425 100 395 . . 150 Parts Sabotaged . | . . . . . . Parts Stolen . | . . . . . . Parts Stripped . | . . . . . . Power Chain Reactions 1 | . . . . . 1 Alert | -11 -10 -10 -9 -9 -8 ------- Run | Yrd Mat Min Mat Sto Mat Peak Influence 330 | 45 80 144 130 69 330 Initial 54 | . 16 19 15 54 25 Average 82 | 15 34 89 62 28 217 Maximum Alert Level 1 | . . . . . 1 Low Security (%) 84 | 100 100 100 100 100 29 Level 1 15 | . . . . . 70 Level 2 . | . . . . . . Level 3 . | . . . . . . Level 4 . | . . . . . . Level 5 . | . . . . . . High Security . | . . . . . . Max Security . | . . . . . . Squads Dispatched 2 | . . . . . 2 Investigation . | . . . . . . Extermination . | . . . . . . Reinforcement 2 | . . . . . 2 Assault . | . . . . . . Garrison . | . . . . . . Intercept . | . . . . . . Searches Triggered . | . . . . . . Construction Impeded 1 | . . . . . 1 Haulers Reinforced . | . . . . . . Active Scanning Responses . | . . . . . . Cargo Convoy Interrupts . | . . . . . . Stealth | -11 -10 -10 -9 -9 -8 --------- Run | Yrd Mat Min Mat Sto Mat Distress Signals 1 | . . . . . 1 Communications Jammed . | . . . . . . Distress Signals . | . . . . . . Times Spotted 54 | . 7 9 6 4 28 Peak Tracking Total 10 | . 3 5 2 3 10 Tactical Retreats 3 | . . . . 1 2 Traps | -11 -10 -10 -9 -9 -8 ------- Run | Yrd Mat Min Mat Sto Mat Traps Triggered 1 | . . . . 1 . Indirectly . | . . . . . . Trap Hack Attempts . | . . . . . . Triggered . | . . . . . . Disarmed . | . . . . . . Reprogrammed . | . . . . . . Reused . | . . . . . . Traps Extracted . | . . . . . . Installed . | . . . . . . Triggered . | . . . . . . Machines | -11 -10 -10 -9 -9 -8 ---------- Run | Yrd Mat Min Mat Sto Mat Machines Disabled 2 | . . . 1 . 1 Max in Single Turn 1 | . . . 1 . 1 Machines Repaired . | . . . . . . Machines Dismantled . | . . . . . . Machines Sabotaged . | . . . . . . Overloaded Fab Kills . | . . . . . . Hacking | -11 -10 -10 -9 -9 -8 --------- Run | Yrd Mat Min Mat Sto Mat Machines Accessed 3 | . 2 . . 1 . Terminals 3 | . 2 . . 1 . Fabricators . | . . . . . . Repair Stations . | . . . . . . Recycling Units . | . . . . . . Scanalyzers . | . . . . . . Garrison Access . | . . . . . . Total Hacks 6 | . 3 . . 3 . Successful 3 | . 2 . . 1 . Failed 3 | . 1 . . 2 . Catastrophic . | . . . . . . Database Lockouts . | . . . . . . Manual . | . . . . . . Terminals 6 | . 3 . . 3 . Fabricators . | . . . . . . Repair Stations . | . . . . . . Recycling Units . | . . . . . . Scanalyzers . | . . . . . . Garrison Access . | . . . . . . Terminal Hacks 3 | . 2 . . 1 . Record 1 | . 1 . . . . Unreport Threat 1 | . . . . 1 . Locate Traps 1 | . 1 . . . . Fabricator Hacks . | . . . . . . Repair Station Hacks . | . . . . . . Recycling Unit Hacks . | . . . . . . Scanalyzer . | . . . . . . Garrison Access Hacks . | . . . . . . Unauthorized Hacks . | . . . . . . Terminals . | . . . . . . Fabricators . | . . . . . . Repair Stations . | . . . . . . Recycling Units . | . . . . . . Scanalyzers . | . . . . . . Garrison Access . | . . . . . . Data Cores Recovered . | . . . . . . Used . | . . . . . . Hacking Detections 1 | . . . . 1 . Full Trace Events . | . . . . . . Feedback Events . | . . . . . . Feedback Blocked . | . . . . . . Robot Schematics Acquired . | . . . . . . Robots Built . | . . . . . . Authchips . | . . . . . . Time . | . . . . . . Total Robot Build Rating . | . . . . . . Part Schematics Acquired . | . . . . . . Parts Built . | . . . . . . Authchips . | . . . . . . Time . | . . . . . . Total Part Build Rating . | . . . . . . Parts Repaired . | . . . . . . Time . | . . . . . . Parts Recycled . | . . . . . . Recycled Matter . | . . . . . . Retrieved Matter . | . . . . . . Retrieved Components . | . . . . . . Parts Scanalyzed . | . . . . . . Part Schematics Acquired . | . . . . . . Parts Damaged . | . . . . . . Bothacking | -11 -10 -10 -9 -9 -8 ------------ Run | Yrd Mat Min Mat Sto Mat Used RIF Installer . | . . . . . . Robots Hacked 1 | . . 1 . . . Non-combat . | . . . . . . Combat 1 | . . 1 . . . Robot Hacks Applied 1 | . . 1 . . . parse_system 1 | . . 1 . . . Relay Couplers Released . | . . . . . . Fabnet Peak Effective % . | . . . . . . Robots Rewired . | . . . . . . Allies Hacked . | . . . . . . Hacks Repelled . | . . . . . . Allies | -11 -10 -10 -9 -9 -8 -------- Run | Yrd Mat Min Mat Sto Mat Total Allies . | . . . . . . Largest Group . | . . . . . . Highest-Rated Group . | . . . . . . Highest-Rated Ally . | . . . . . . Total Orders . | . . . . . . Ally Attacks . | . . . . . . Total Damage . | . . . . . . Kills . | . . . . . . Allies Corrupted . | . . . . . . Allies Melted . | . . . . . . Intel | -11 -10 -10 -9 -9 -8 ------- Run | Yrd Mat Min Mat Sto Mat Robot Analysis Total . | . . . . . . Derelict Logs Recovered . | . . . . . . Drone Launches . | . . . . . . Drone Recoveries . | . . . . . . Exploration | -11 -10 -10 -9 -9 -8 ------------- Run | Yrd Mat Min Mat Sto Mat Turns Passed 2881 | 647 605 527 351 135 616 Spaces Moved 1762 | 344 219 182 352 271 394 Core 72 | 4 . . . . 68 Treads 696 | 340 219 137 . . . Legs 163 | . . . . . 163 Wheels 69 | . . 45 24 . . Hover . | . . . . . . Flight 762 | . . . 328 271 163 Fastest Speed 31 | 50 160 110 31 34 34 Average Speed 127 | 158 258 207 51 34 122 Slowest Speed 400 | 160 320 240 114 34 400 Overloaded Moves . | . . . . . . Propulsion Burnouts . | . . . . . . Robots Hopped 2 | . . . . 1 1 Cave-ins Triggered 1 | . . . . . 1 Exploration Rate (%) 26 | 19 21 30 26 32 28 Regions Visited 5 Branch Regions 2 Pre-discovered Areas . | . . . . . . Known Exits Taken . | . . . . . . Unknown Exits Taken 5 | 1 1 1 1 1 . Scrap Searched . | . . . . . . Spaces Dug . | . . . . . . Terrain Destroyed 134 | . . . . . 134 Melee . | . . . . . . Projectile . | . . . . . . AOE 134 | . . . . . 134 Terrain Rammed . | . . . . . . Walls Destroyed . | . . . . . . Machines Disabled . | . . . . . . Actions | -11 -10 -10 -9 -9 -8 --------- Run | Yrd Mat Min Mat Sto Mat Total 2219 | 385 245 286 503 312 488 Wait 199 | . 7 42 99 14 37 Move 1753 | 343 218 181 351 268 392 Hop 2 | . . . . 1 1 Pick Up 38 | 6 8 10 6 2 6 Fast Attach 29 | 7 1 3 3 3 12 Attach 19 | . 1 5 8 . 5 Detach 6 | . . 2 . 1 3 Swap 10 | . 1 1 7 . 1 Drop 38 | . 2 7 18 4 7 Fire 100 | 28 7 33 11 1 20 Melee 2 | . . 2 . . . Ram . | . . . . . . Kick 4 | . . . . . 4 Crush 1 | 1 . . . . . Escape Stasis 18 | . . . . 18 . Rewire . | . . . . . . Trap . | . . . . . . Miscellaneous . | . . . . . . Route ------- -11/Scrapyard -10/Materials (discovered 2 exits: [*Min x2]) -10/Mines -9/Materials -9/Storage -8/Materials (discovered 1 exit: [*Fac]) History --------- Turn | Location | Event 8 | -11/Scrapyard | Discovered new exit (range 15) 648 | -11/Scrapyard | Entered Materials 649 | -10/Materials | Build established: Mutant 672 | -10/Materials | Discovered new exit (range 11) 772 | -10/Materials | Discovered new exit (range 12) 1253 | -10/Materials | Entered Mines 1558 | -10/Mines | A weapon hastily lodged in a ceiling crevice suddenly fell to the ground 1706 | -10/Mines | Core integrity fell below 50% 1771 | -10/Mines | Discovered new exit (range 6) 1780 | -10/Mines | Entered Materials 1780 | -9/Materials | Evolved 2 slots: Propulsion x2 1905 | -9/Materials | Discovered new exit (range 16) 2082 | -9/Materials | Lost 4 parts (1p3n) 2131 | -9/Materials | Entered Storage 2224 | -9/Storage | Discovered new exit (range 15) 2266 | -9/Storage | Entered Materials 2266 | -8/Materials | Evolved 2 slots: Power x1, Propulsion x1 2507 | -8/Materials | Discovered new exit (range 12) 2524 | -8/Materials | Crushed by falling debris 2524 | -8/Materials | System corruption reached 10% 2555 | -8/Materials | Lost 5 parts (2n2u1w) 2857 | -8/Materials | Core integrity fell below 50% 2880 | -8/Materials | Core integrity fell below 20% 2882 | -8/Materials | Destroyed by G-47 Trooper with Particle Gun Last Messages --------------- 02835_ Acquired 45 matter. 02836_ Adv. Targeting Computer destroyed. 02848_ System corrupted: Energy discharge (-11). 02848_ U-05 Engineer lays Concrete. 02848_ Adv. EMP Blaster destroyed. 02849_ U-05 Engineer lays Concrete. 02850_ Kicked O-16 Technician out of the way. 02851_ Titanium Leg destroyed. 02852_ S-10 Pest destroyed. 02854_ Acquired Flak Cannon. 02860_ K-01 Serf cleans the Nuclear Reactor. 02865_ G-47 Trooper knocked back. 02867_ Critical hit (Burn: +37). 02867_ G-47 Trooper knocked back. 02868_ System corrupted: FCS attempts to trigger Flak Cannon. 02868_ System corrupted: Flak Cannon misfires. 02868_ Recalibrator destroyed. 02873_ Flak Cannon destroyed. 02876_ S-10 Pest destroyed. 02882_ Critical hit (Burn: +37). Map ----- +----------------------------------------------------+ | ?????????????????????????????? ????????????????? | | ?????????????????????????????+ ????????????????? | | ?????????????????????????????# ???????????????? | | ?????????????????????????????# #???????????????? | | ?????????????????????????????# #???????????????? | | ?????????????????????????????# #???????????????? | | ?????????????????????????????# #???????????????? | | ?????????????????????????????# #???????????????? | | ?????????????????????????????# #??????????????? | | ?????????????????????????????# #??????????????? | | ?????????????????????????????# #??????????????? | | ?????????????????""?????###### ##??? ????????# | | ?????????????????"" ????# ## #####+######### | | ???????????????"""" #### ## | | ??????????????? | | ?????????????? % " | | ??????????????? ! " " | | ????????????????????##### ### ###! " | | ???????????????????????# =%!# ##### ! " | | ???????????????????????# ###?### | | ???????????????????????#""" "#???# # | | ???????????????????????#""" T##?#### | | ???????????????????????#""" "# # | | ???????????????????????# # ! # =% | | ???????????????????????####/### # | | ???????????????######+###@%Y # """ # | | ???????? ^ ggg # """ # | | ???????? g # ?"??+ | | ???????? #?????# | | ?????????#### """ """ #?????# ######## | | ????????????# """ """ #?????# #??# | | ????????????# """ """ #?????# #??#"" | | ????????????# ^ #?????# #??#"T | | ????????????????? #?????# #??#"" | | ???????????????? """ """ #?????# T??# | | ???????????????? """ ?"" #?????# ???# | | ??????????????????""" ?"" ????? ? ???# | | ???????????????????? ?? ###?????????????# | | ???????????????????? ??? #???????????????## | | ???????????????????? ??? #????????????????# # | | ????????????????????#????+####????????????????# ## | | ?????????????????????????????????????????????? #? | | ??????????????????????????????????????????????###? | | ?????????????????????????????????????????########? | | ?????????????????????????????????????????# #? | | ?????????????????????????????????????????# "" #? | | ?????????????????????????????????????????# "" #? | | ???????????????????????????????####??????# = T" #? | | ???????????????????????????????#! ????# "" #? | | ???????????#???????????????????# ??# #? | +----------------------------------------------------+ Best States ------------- Heat Dissipation 31 Energy Generation 21 Energy Capacity 325 Matter Stores 300 Matter Capacity 300 Sight Range 16 Terrain Scan Range 16 Terrain Scan Density 10 ECM Strength 1 Core Shielding 20 Evasion (%) 63 Targeting Accuracy 8 Recoil Reduction 2 Item Schematics ----------------- None Robot Schematics ------------------ None Fabricated ------------ Nothing Alien Tech Used ----------------- None Achievements -------------- Everything Is Under Control Let's See Who's Tougher Loot Pinata Maybe Next Time I'll Detach My Launcher Oops Challenges ------------ None Game ------ Seed DirtyPrecisionWheel Manual? 0 Play Time 00:37:07 Cumulative 2.2 hours Start 2024.05.22 @ 19:46:19 End 2024.05.22 @ 20:21:46 Sessions 1 Manual Loads 0 Difficulty Rogue Special Mode None Game No. 5 Rogue 5 Adventurer 0 Explorer 0 Win Type - Total 0 Types 0/0/0/0/0/0/0/0/0 Lore% 2 Gallery% 7 Achievement% 6 Wizard Run 0 Options --------- Layout 0 ASCII 0 Keyboard 0 Movement Arrows Keybinds 0 Fullscreen 1 Font 18/SmallcapsGlow Map View 38x25 Zoom Use 100% Tactical HUD 1 Map Filters NONE Filters NONE Steam 1 RUN: d6f5a15c-b680-43a3-b3f9-e5315ef99b60